Workbook

Sheet Feuil5
V1: klm | AS1: mlk | BK1: mkl
A9: ترتيب | B9: رقم العميل | C9: رقم الفاتورة | D9: شهر الخاص بالفاتورة | E9: مبلغ الفاتورة | F9: مبلغ تسديد الفاتورة | G9: الرصيد | H9: الوكالة | I9: شهر تسديد الفاتورة | J9: السنة | K9: رمز التسديد
A10: 1 | B10: 1001 | C10: 230713106401 | D10: 72023 | E10: 5459 | G10: =IF(D10>0,E10-F10," ") -> 5459 | J10: =IF(D10=12024,24,IF(D10=22024,24,IF(D10=32024,24,IF(D10=42024,24,IF(D10=52024,24,IF(D10=62024,24,IF(D10=72024,24,IF(D10=82024,24,IF(D10=92024,24,IF(D10=102024,24,IF(D10=112024,24,IF(D10=122024,24,IF(D10=""," ",23))))))))))))) -> 23 | K10: =IF(G10=0,1,0) -> 0 | V10: =+B10 -> 1001 | W10: =IF(F10=0," ",H10) ->  | X10: =IF(F10=0," ",J10) ->  | Y10: =IF(F10=0," ",F10) ->  | AS10: 1001 | AT10: 5459
A11: 2 | B11: 1001 | C11: 192231010001 | D11: 102023 | E11: 12248.43 | G11: 12248.43 | J11: =IF(D11=12024,24,IF(D11=22024,24,IF(D11=32024,24,IF(D11=42024,24,IF(D11=52024,24,IF(D11=62024,24,IF(D11=72024,24,IF(D11=82024,24,IF(D11=92024,24,IF(D11=102024,24,IF(D11=112024,24,IF(D11=122024,24,IF(D11=""," ",23))))))))))))) -> 23 | K11: =IF(G11=0,1,0) -> 0 | V11: 1001 | Y11: =IF(F11=0," ",F11) ->  | AS11: 1001 | AT11: 12248.43
A12: 3 | B12: 1001 | C12: 231002106401 | D12: 102023 | E12: 6458 | G12: =IF(D12>0,E12-F12," ") -> 6458 | J12: 23 | K12: 0 | V12: 1001 | AS12: 1001 | AT12: 6458
A13: 4 | B13: 1001 | C13: 231008106401 | D13: 102023 | E13: 17915 | G13: =IF(D13>0,E13-F13," ") -> 17915 | J13: 23 | K13: 0 | V13: 1001 | AS13: 1001 | AT13: 17915
A14: 5 | B14: 1001 | C14: 231019106401 | D14: 102023 | E14: 4405 | G14: =IF(D14>0,E14-F14," ") -> 4405 | J14: 23 | K14: 0 | V14: 1001 | AS14: 1001 | AT14: 4405 | AV14: =SUMIF(AS10:AS18,AS15,AT10:AT18) -> 150389.27
A15: 6 | B15: 1001 | C15: 231031106401 | D15: 102023 | E15: 19374 | G15: 19374 | J15: 23 | K15: 0 | V15: 1001 | AS15: 1001 | AT15: 19374
A16: 7 | B16: 1001 | C16: FA2311-1901-0003 | D16: 112023 | E16: 11099.84 | G16: 11099.84 | J16: 23 | K16: 0 | V16: 1001 | AS16: 1001 | AT16: 11099.84
A17: 8 | B17: 1001 | C17: FA2311-1963-0020 | D17: 112023 | E17: 14530 | G17: 14530 | J17: 23 | K17: 0 | V17: 1001 | AS17: 1001 | AT17: 14530
A18: 9 | B18: 1001 | C18: FA2311-1967-0009 | D18: 112023 | E18: 58900 | G18: 58900 | J18: 23 | K18: 0 | V18: 1001 | AS18: 1001 | AT18: 58900
A19: 10 | B19: 1001 | C19: FA2312-1967-0004 | D19: 122023 | E19: 9460 | G19: 9460 | J19: 23 | K19: 0 | V19: 1001
A20: 11 | B20: 1001 | C20: FA2312-1963-0031 | D20: 122023 | E20: 52403 | G20: 52403 | J20: 23 | K20: 0 | V20: =+D100 -> 92023
A21: 12 | B21: 1005 | C21: 200130706401 | D21: 12020 | E21: =-268735+183356.49 -> -85378.51 | G21: -85378.51 | J21: 23 | K21: 0 | V21: 92023 | AS21: 1005 | AT21: -85378.51
A22: 13 | B22: 1005 | C22: 200318706401 | D22: 32020 | E22: =-311651+261891.53+12844.38 -> -36915.09 | G22: -36915.09 | J22: 23 | K22: 0 | V22: 92023 | AS22: 1005 | AT22: -36915.09
A23: 14 | B23: 1005 | C23: 220430706411 | D23: 72022 | E23: 108340.52 | G23: 108340.52 | J23: 23 | K23: 0 | V23: 92023 | AS23: 1005 | AT23: 108340.52
A24: 15 | B24: 1005 | C24: 220727706401 | D24: 72022 | E24: =-35837+29294.79 -> -6542.21 | G24: -6542.21 | J24: 23 | K24: 0 | V24: 92023 | AS24: 1005 | AT24: -6542.21
A25: 16 | B25: 1005 | C25: 220731706413 | D25: 92022 | E25: 89697.87 | G25: 89697.87 | J25: 23 | K25: 0 | V25: 92023 | AS25: 1005 | AT25: 89697.87
A26: 17 | B26: 1005 | C26: 220831706411 | D26: 102022 | E26: 125877.67 | G26: 125877.67 | J26: 23 | K26: 0 | V26: 92023 | AS26: 1005 | AT26: 125877.67
A27: 18 | B27: 1005 | C27: 220930706411 | D27: 122022 | E27: 254166.09 | G27: 254166.09 | J27: 23 | K27: 0 | V27: 102023 | AS27: 1005 | AT27: 254166.09
A28: 19 | B28: 1005 | C28: 221218706401 | D28: 122022 | E28: -12353.16 | G28: -12353.16 | J28: 23 | K28: 0 | V28: 102023 | AS28: 1005 | AT28: -12353.16
A29: 20 | B29: 1005 | C29: 230131706401 | D29: 12023 | E29: -14592.17 | G29: -14592.17 | J29: 23 | K29: 0 | V29: 102023 | AS29: 1005 | AT29: -14592.17
A30: 21 | B30: 1005 | C30: 230228706411 | D30: 52023 | E30: 104421.57 | G30: 104421.57 | J30: 23 | K30: 0 | V30: 1005 | AS30: 1005 | AT30: 104421.57
A31: 22 | B31: 1005 | C31: 230331706412 | D31: 52023 | E31: 114470.52 | G31: 114470.52 | J31: 23 | K31: 0 | V31: 1005 | AS31: 1005 | AT31: 114470.52
A32: 23 | B32: 1005 | C32: 192230520005 | D32: 52023 | E32: 960000 | G32: 960000 | J32: 23 | K32: 0 | V32: 1005 | AS32: 1005 | AT32: 960000
A33: 24 | B33: 1005 | C33: 230508706401 | D33: 52023 | E33: -2647.22 | G33: -2647.22 | J33: 23 | K33: 0 | V33: 1005 | AS33: 1005 | AT33: -2647.22
A34: 25 | B34: 1005 | C34: 192230620006 | D34: 62023 | E34: 960000 | G34: 960000 | J34: 23 | K34: 0 | V34: 1005 | AS34: 1005 | AT34: 960000
A35: 26 | B35: 1005 | C35: 194230720007 | D35: 72023 | E35: 513600 | G35: 513600 | J35: 23 | K35: 0 | V35: 1005 | AS35: 1005 | AT35: 513600
A36: 27 | B36: 1005 | C36: 230430706411 | D36: 72023 | E36: 128759.57 | G36: 128759.57 | J36: 23 | K36: 0 | V36: 1005 | AS36: 1005 | AT36: 128759.57
A37: 28 | B37: 1005 | C37: 230531706412 | D37: 82023 | E37: 111726.54 | G37: 111726.54 | J37: 23 | K37: 0 | V37: 1005 | AS37: 1005 | AT37: 111726.54
A38: 29 | B38: 1005 | C38: 230630706413 | D38: 82023 | E38: 281437.33 | G38: 281437.33 | J38: 23 | K38: 0 | V38: 1005 | AS38: 1005 | AT38: 281437.33
A39: 30 | B39: 1005 | C39: 192230820008 | D39: 82023 | E39: 513600 | G39: =IF(D39>0,E39-F39," ") -> 513600 | J39: 23 | K39: 0 | V39: 1005 | AS39: 1005 | AT39: 513600
A40: 31 | B40: 1005 | C40: 192230920009 | D40: 92023 | E40: 770400 | G40: =IF(D40>0,E40-F40," ") -> 770400 | J40: 23 | K40: 0 | V40: 1005 | AS40: 1005 | AT40: 770400
A41: 32 | B41: 1005 | C41: 230901106401 | D41: 92023 | E41: 20011 | F41: 20011 | G41: 0 | H41: 064 | I41: 01/2024 | J41: 23 | K41: 1 | V41: 1005 | W41: 064 | X41: 23 | Y41: 20011 | AS41: 1005 | AT41: 20011
A42: 33 | B42: 1005 | C42: 230902106401 | D42: 92023 | E42: 3869 | F42: 3869 | G42: 0 | H42: 064 | I42: 01/2024 | J42: 23 | K42: 1 | V42: 1005 | W42: 064 | X42: 23 | Y42: 3869 | AS42: 1005 | AT42: 3869
A43: 34 | B43: 1005 | C43: 230904106401 | D43: 92023 | E43: 14123 | F43: 14123 | G43: 0 | H43: 064 | I43: 01/2024 | J43: 23 | K43: 1 | V43: 1005 | W43: 064 | X43: 23 | Y43: 14123 | AS43: 1005 | AT43: 14123
A44: 35 | B44: 1005 | C44: 230907106401 | D44: 92023 | E44: 74925 | F44: 74925 | G44: 0 | H44: 064 | I44: 01/2024 | J44: 23 | K44: 1 | V44: 1005 | W44: 064 | X44: 23 | Y44: 74925 | AS44: 1005 | AT44: 74925
A45: 36 | B45: 1005 | C45: 230910106401 | D45: 92023 | E45: 52019 | F45: 52019 | G45: 0 | H45: 064 | I45: 01/2024 | J45: 23 | K45: 1 | V45: 1005 | W45: 064 | X45: 23 | Y45: 52019 | AS45: 1005 | AT45: 52019
A46: 37 | B46: 1005 | C46: 230911106401 | D46: 92023 | E46: 372074 | F46: 372074 | G46: 0 | H46: 064 | I46: 01/2024 | J46: 23 | K46: 1 | V46: 1005 | W46: 064 | X46: 23 | Y46: 372074 | AS46: 1005 | AT46: 372074
A47: 38 | B47: 1005 | C47: 230912106401 | D47: 92023 | E47: 57290 | F47: 57290 | G47: 0 | H47: 064 | I47: 01/2024 | J47: 23 | K47: 1 | V47: 1005 | W47: 064 | X47: 23 | Y47: 57290 | AS47: 1005 | AT47: 57290
A48: 39 | B48: 1005 | C48: 230918106401 | D48: 92023 | E48: 231224 | F48: 231224 | G48: 0 | H48: 064 | I48: 01/2024 | J48: 23 | K48: 1 | V48: 1005 | W48: 064 | X48: 23 | Y48: 231224 | AS48: 1005 | AT48: 231224
A49: 40 | B49: 1005 | C49: 230919106401 | D49: 92023 | E49: 165250 | F49: 165250 | G49: 0 | H49: 064 | I49: 01/2024 | J49: 23 | K49: 1 | V49: 1005 | W49: 064 | X49: 23 | Y49: 165250 | AS49: 1005 | AT49: 165250
A50: 41 | B50: 1005 | C50: 230920106401 | D50: 92023 | E50: 279032 | F50: 279032 | G50: 0 | H50: 064 | I50: 01/2024 | J50: 23 | K50: 1 | V50: 1005 | W50: 064 | X50: 23 | Y50: 279032 | AS50: 1005 | AT50: 279032
A51: 42 | B51: 1005 | C51: 230921106401 | D51: 92023 | E51: 61087 | F51: 61087 | G51: 0 | H51: 064 | I51: 01/2024 | J51: 23 | K51: 1 | V51: 1005 | W51: 064 | X51: 23 | Y51: 61087 | AS51: 1005 | AT51: 61087
A52: 43 | B52: 1005 | C52: 230923106401 | D52: 92023 | E52: 12159 | F52: 12159 | G52: 0 | H52: 064 | I52: 01/2024 | J52: 23 | K52: 1 | V52: 1005 | W52: 064 | X52: 23 | Y52: 12159 | AS52: 1005 | AT52: 12159
A53: 44 | B53: 1005 | C53: 230925106401 | D53: 92023 | E53: 39924 | F53: 39924 | G53: 0 | H53: 064 | I53: 01/2024 | J53: 23 | K53: 1 | V53: 1005 | W53: 064 | X53: 23 | Y53: 39924 | AS53: 1005 | AT53: 39924
A54: 45 | B54: 1005 | C54: 230926106401 | D54: 92023 | E54: 15890 | F54: 15890 | G54: 0 | H54: 064 | I54: 01/2024 | J54: 23 | K54: 1 | V54: 1005 | W54: 064 | X54: 23 | Y54: 15890 | AS54: 1005 | AT54: 15890
A55: 46 | B55: 1005 | C55: 230928106401 | D55: 92023 | E55: 36477 | F55: 36477 | G55: 0 | H55: 064 | I55: 01/2024 | J55: 23 | K55: 1 | V55: 1005 | W55: 064 | X55: 23 | Y55: 36477 | AS55: 1005 | AT55: 36477
A56: 47 | B56: 1005 | C56: 230929106401 | D56: 92023 | E56: 265820 | F56: 265820 | G56: 0 | H56: 064 | I56: 01/2024 | J56: 23 | K56: 1 | V56: 1005 | W56: 064 | X56: 23 | Y56: 265820 | AS56: 1005 | AT56: 265820
A57: 48 | B57: 1005 | C57: 230930106402 | D57: 92023 | E57: 3869 | F57: 3869 | G57: 0 | H57: 064 | I57: 01/2024 | J57: 23 | K57: 1 | V57: 1005 | W57: 064 | X57: 23 | Y57: 3869 | AS57: 1005 | AT57: 3869
A58: 49 | B58: 1005 | C58: 192231020010 | D58: 102023 | E58: 513600 | G58: =IF(D58>0,E58-F58," ") -> 513600 | J58: 23 | K58: 0 | V58: 1005 | AS58: 1005 | AT58: 513600
A59: 50 | B59: 1005 | C59: 231001106401 | D59: 102023 | E59: 4976 | G59: =IF(D59>0,E59-F59," ") -> 4976 | J59: 23 | K59: 0 | V59: 1005 | AS59: 1005 | AT59: 4976
A60: 51 | B60: 1005 | C60: 231002106402 | D60: 102023 | E60: 19518 | G60: 19518 | J60: 23 | K60: 0 | V60: 1005 | AS60: 1005 | AT60: 19518
A61: 52 | B61: 1005 | C61: 231003106401 | D61: 102023 | E61: 7916 | G61: 7916 | J61: 23 | K61: 0 | V61: 1005 | AS61: 1005 | AT61: 7916
A62: 53 | B62: 1005 | C62: 231005106401 | D62: 102023 | E62: 324101 | G62: 324101 | J62: 23 | K62: 0 | V62: 1005 | AS62: 1005 | AT62: 324101
A63: 54 | B63: 1005 | C63: 231009106401 | D63: 102023 | E63: 164193 | G63: 164193 | J63: 23 | K63: 0 | V63: 1005 | AS63: 1005 | AT63: 164193
A64: 55 | B64: 1005 | C64: 231010106401 | D64: 102023 | E64: 26410 | G64: 26410 | J64: 23 | K64: 0 | V64: 1005 | AS64: 1005 | AT64: 26410
A65: 56 | B65: 1005 | C65: 231011106401 | D65: 102023 | E65: 36704 | G65: 36704 | J65: 23 | K65: 0 | V65: 1005 | AS65: 1005 | AT65: 36704
A66: 57 | B66: 1005 | C66: 231013106401 | D66: 102023 | E66: 17260 | G66: 17260 | J66: 23 | K66: 0 | V66: 1005 | AS66: 1005 | AT66: 17260
A67: 58 | B67: 1005 | C67: 231016106401 | D67: 102023 | E67: 13504 | G67: 13504 | J67: 23 | K67: 0 | V67: 1005 | AS67: 1005 | AT67: 13504
A68: 59 | B68: 1005 | C68: 231016706401 | D68: 102023 | E68: -12351 | G68: -12351 | J68: 23 | K68: 0 | V68: 1005 | AS68: 1005 | AT68: -12351
A69: 60 | B69: 1005 | C69: 231017106401 | D69: 102023 | E69: 338278 | G69: 338278 | J69: 23 | K69: 0 | V69: 1005 | AS69: 1005 | AT69: 338278
A70: 61 | B70: 1005 | C70: 231019106402 | D70: 102023 | E70: 112904 | G70: 112904 | J70: 23 | K70: 0 | V70: 1005 | AS70: 1005 | AT70: 112904
A71: 62 | B71: 1005 | C71: 231021106401 | D71: 102023 | E71: 4269 | G71: 4269 | J71: 23 | K71: 0 | V71: 1005 | AS71: 1005 | AT71: 4269
A72: 63 | B72: 1005 | C72: 231022106401 | D72: 102023 | E72: 139403 | G72: 139403 | J72: 23 | K72: 0 | V72: 1005 | AS72: 1005 | AT72: 139403
A73: 64 | B73: 1005 | C73: 231023106401 | D73: 102023 | E73: 178314 | G73: 178314 | J73: 23 | K73: 0 | V73: 1005 | AS73: 1005 | AT73: 178314
A74: 65 | B74: 1005 | C74: 231025106401 | D74: 102023 | E74: 30725 | G74: 30725 | J74: 23 | K74: 0 | V74: =+B74 -> 1005 | W74: =IF(F74=0," ",H74) ->  | X74: =IF(F74=0," ",J74) ->  | AS74: 1005 | AT74: 30725
A75: 66 | B75: 1005 | C75: 231026106401 | D75: 102023 | E75: 22731 | G75: 22731 | J75: =IF(D75=12024,24,IF(D75=22024,24,IF(D75=32024,24,IF(D75=42024,24,IF(D75=52024,24,IF(D75=62024,24,IF(D75=72024,24,IF(D75=82024,24,IF(D75=92024,24,IF(D75=102024,24,IF(D75=112024,24,IF(D75=122024,24,IF(D75=""," ",23))))))))))))) -> 23 | K75: =IF(G75=0,1,0) -> 0 | V75: 1005 | Y75: =IF(F75=0," ",F75) ->  | AS75: 1005 | AT75: 22731
A76: 67 | B76: 1005 | C76: 231027106401 | D76: 102023 | E76: 11715 | G76: 11715 | J76: 23 | K76: 0 | V76: 1005 | AS76: 1005 | AT76: 11715
A77: 68 | B77: 1005 | C77: 231029106401 | D77: 102023 | E77: 58425 | G77: 58425 | J77: 23 | K77: 0 | V77: 1005 | AS77: 1005 | AT77: 58425
A78: 69 | B78: 1005 | C78: 231030106401 | D78: 102023 | E78: 26465 | G78: 26465 | J78: 23 | K78: 0 | V78: 1005 | AS78: 1005 | AT78: 26465
A79: 70 | B79: 1005 | C79: 192231120011 | D79: 112023 | E79: 513600 | G79: 513600 | J79: 23 | K79: 0 | V79: 1005 | AS79: 1005 | AT79: 513600
A80: 71 | B80: 1005 | C80: FA2311-1963-0036 | D80: 112023 | E80: 2159033 | G80: 2159033 | J80: 23 | K80: 0 | V80: 1005 | AS80: 1005 | AT80: 2159033
A81: 72 | B81: 1005 | C81: 192231220012 | D81: 122023 | E81: 513600 | G81: 513600 | J81: 23 | K81: 0 | V81: 1005
A82: 73 | B82: 1005 | C82: FA2312-1963-0032 | D82: 122023 | E82: 2258999 | G82: 2258999 | J82: 23 | K82: 0 | V82: 1005 | AT82: 0
A83: 74 | B83: 1005 | C83: 230930706411 | D83: 12024 | F83: -232672.39 | G83: 232672.39 | H83: 064 | I83: 01/2024 | J83: 24 | K83: 0 | V83: 1005 | W83: 064 | X83: 24 | Y83: -232672.39
A84: 75 | B84: 1006 | C84: 230131706414 | D84: 42023 | E84: 275596.29 | G84: 275596.29 | J84: 23 | K84: 0 | V84: 1006 | AS84: 1006 | AT84: 275596.29
A85: 76 | B85: 1006 | C85: 230228706415 | D85: 42023 | E85: 150975.14 | G85: 150975.14 | J85: 23 | K85: 0 | V85: 1006 | AS85: 1006 | AT85: 150975.14
A86: 77 | B86: 1006 | C86: 230331706411 | D86: 62023 | E86: 167564.67 | G86: 167564.67 | J86: 23 | K86: 0 | V86: 1006 | AS86: 1006 | AT86: 167564.67
A87: 78 | B87: 1006 | C87: 230430706412 | D87: 72023 | E87: 100622.01 | G87: 100622.01 | J87: 23 | K87: 0 | V87: 1006 | AS87: 1006 | AT87: 100622.01
A88: 79 | B88: 1006 | C88: 230531706414 | D88: 82023 | E88: 212381.13 | G88: 212381.13 | J88: 23 | K88: 0 | V88: 1006 | AS88: 1006 | AT88: 212381.13
A89: 80 | B89: 1006 | C89: 230630706415 | D89: 82023 | E89: 168476.17 | G89: 168476.17 | J89: 23 | K89: 0 | V89: 1006 | AS89: 1006 | AT89: 168476.17
A90: 81 | B90: 1006 | C90: 230731706411 | D90: 82023 | E90: 127461.32 | G90: 127461.32 | J90: 23 | K90: 0 | V90: 1006 | AS90: 1006 | AT90: 127461.32
A91: 82 | B91: 1006 | C91: 230904106402 | D91: 92023 | E91: 321219 | F91: 321219 | G91: 0 | H91: 064 | I91: 01/2024 | J91: 23 | K91: 1 | V91: 1006 | W91: 064 | X91: 23 | Y91: 321219 | AS91: 1006 | AT91: 321219
A92: 83 | B92: 1006 | C92: 230905106401 | D92: 92023 | E92: 322140 | F92: 322140 | G92: 0 | H92: 064 | I92: 01/2024 | J92: 23 | K92: 1 | V92: 1006 | W92: 064 | X92: 23 | Y92: 322140 | AS92: 1006 | AT92: 322140
A93: 84 | B93: 1006 | C93: 230906106401 | D93: 92023 | E93: 359603 | F93: 359603 | G93: 0 | H93: 064 | I93: 01/2024 | J93: 23 | K93: 1 | V93: 1006 | W93: 064 | X93: 23 | Y93: 359603 | AS93: 1006 | AT93: 359603
A94: 85 | B94: 1006 | C94: 230907106402 | D94: 92023 | E94: 8580 | F94: 8580 | G94: 0 | H94: 064 | I94: 01/2024 | J94: 23 | K94: 1 | V94: 1006 | W94: 064 | X94: 23 | Y94: 8580 | AS94: 1006 | AT94: 8580
A95: 86 | B95: 1006 | C95: 230910106402 | D95: 92023 | E95: 150777 | F95: 150777 | G95: 0 | H95: 064 | I95: 01/2024 | J95: 23 | K95: 1 | V95: 1006 | W95: 064 | X95: 23 | Y95: 150777 | AS95: 1006 | AT95: 150777
A96: 87 | B96: 1006 | C96: 230912106402 | D96: 92023 | E96: 348797 | F96: 348797 | G96: 0 | H96: 064 | I96: 01/2024 | J96: 23 | K96: 1 | V96: 1006 | W96: 064 | X96: 23 | Y96: 348797 | AS96: 1006 | AT96: 348797
A97: 88 | B97: 1006 | C97: 230913106401 | D97: 92023 | E97: 275874 | F97: 275874 | G97: 0 | H97: 064 | I97: 01/2024 | J97: 23 | K97: 1 | V97: 1006 | W97: 064 | X97: 23 | Y97: 275874 | AS97: 1006 | AT97: 275874
A98: 89 | B98: 1006 | C98: 230914106401 | D98: 92023 | E98: 222218 | F98: 222218 | G98: 0 | H98: 064 | I98: 01/2024 | J98: 23 | K98: 1 | V98: 1006 | W98: 064 | X98: 23 | Y98: 222218 | AS98: 1006 | AT98: 222218
A99: 90 | B99: 1006 | C99: 230918106402 | D99: 92023 | E99: 216790 | F99: 216790 | G99: 0 | H99: 064 | I99: 01/2024 | J99: 23 | K99: 1 | V99: 1006 | W99: 064 | X99: 23 | Y99: 216790 | AS99: 1006 | AT99: 216790
A100: 91 | B100: 1006 | C100: 230919106402 | D100: 92023 | E100: 368077 | F100: 368077 | G100: 0 | H100: 064 | I100: 01/2024 | J100: 23 | K100: 1 | V100: 1006 | W100: 064 | X100: 23 | Y100: 368077 | AS100: 1006 | AT100: 368077
A101: 92 | B101: 1006 | C101: 230921106402 | D101: 92023 | E101: 230262 | F101: 230262 | G101: 0 | H101: 064 | I101: 01/2024 | J101: 23 | K101: 1 | V101: 1006 | W101: 064 | X101: 23 | Y101: 230262 | AS101: 1006 | AT101: 230262
A102: 93 | B102: 1006 | C102: 230923106402 | D102: 92023 | E102: 497765 | F102: 497765 | G102: 0 | H102: 064 | I102: 01/2024 | J102: 23 | K102: 1 | V102: 1006 | W102: 064 | X102: 23 | Y102: 497765 | AS102: 1006 | AT102: 497765
A103: 94 | B103: 1006 | C103: 230924106401 | D103: 92023 | E103: 472876 | F103: 472876 | G103: 0 | H103: 064 | I103: 01/2024 | J103: 23 | K103: 1 | V103: 1006 | W103: 064 | X103: 23 | Y103: 472876 | AS103: 1006 | AT103: 472876
A104: 95 | B104: 1006 | C104: 230925106402 | D104: 92023 | E104: 193840 | F104: 193840 | G104: 0 | H104: 064 | I104: 01/2024 | J104: 23 | K104: 1 | V104: 1006 | W104: 064 | X104: 23 | Y104: 193840 | AS104: 1006 | AT104: 193840
A105: 96 | B105: 1006 | C105: 230927106401 | D105: 92023 | E105: 413982 | F105: 413982 | G105: 0 | H105: 064 | I105: 01/2024 | J105: 23 | K105: 1 | V105: 1006 | W105: 064 | X105: 23 | Y105: 413982 | AS105: 1006 | AT105: 413982
A106: 97 | B106: 1006 | C106: 230930106403 | D106: 92023 | E106: 407581 | F106: 407581 | G106: 0 | H106: 064 | I106: 01/2024 | J106: 23 | K106: 1 | V106: 1006 | W106: 064 | X106: 23 | Y106: 407581 | AS106: 1006 | AT106: 407581
A107: 98 | B107: 1006 | C107: 231001106402 | D107: 102023 | E107: 184634 | F107: 184634 | G107: 0 | H107: 064 | I107: 01/2024 | J107: 23 | K107: 1 | V107: 1006 | W107: 064 | X107: 23 | Y107: 184634 | AS107: 1006 | AT107: 184634
A108: 99 | B108: 1006 | C108: 231003106402 | D108: 102023 | E108: 693639 | F108: 693639 | G108: 0 | H108: 064 | I108: 01/2024 | J108: 23 | K108: 1 | V108: 1006 | W108: 064 | X108: 23 | Y108: 693639 | AS108: 1006 | AT108: 693639
A109: 100 | B109: 1006 | C109: 231005106402 | D109: 102023 | E109: 154262 | F109: 154262 | G109: 0 | H109: 064 | I109: 01/2024 | J109: 23 | K109: 1 | V109: 1006 | W109: 064 | X109: 23 | Y109: 154262 | AS109: 1006 | AT109: 154262
A110: 101 | B110: 1006 | C110: 231008106402 | D110: 102023 | E110: 165918 | F110: 165918 | G110: 0 | H110: 064 | I110: 01/2024 | J110: 23 | K110: 1 | V110: 1006 | W110: 064 | X110: 23 | Y110: 165918 | AS110: 1006 | AT110: 165918
A111: 102 | B111: 1006 | C111: 231010106402 | D111: 102023 | E111: 102780 | F111: 102780 | G111: 0 | H111: 064 | I111: 01/2024 | J111: 23 | K111: 1 | V111: 1006 | W111: 064 | X111: 23 | Y111: 102780 | AS111: 1006 | AT111: 102780
A112: 103 | B112: 1006 | C112: 231011106402 | D112: 102023 | E112: 338713 | F112: 338713 | G112: 0 | H112: 064 | I112: 01/2024 | J112: 23 | K112: 1 | V112: 1006 | W112: 064 | X112: 23 | Y112: 338713 | AS112: 1006 | AT112: 338713
A113: 104 | B113: 1006 | C113: 231015106401 | D113: 102023 | E113: 228370 | F113: 228370 | G113: 0 | H113: 064 | I113: 01/2024 | J113: 23 | K113: 1 | V113: 1006 | W113: 064 | X113: 23 | Y113: 228370 | AS113: 1006 | AT113: 228370
A114: 105 | B114: 1006 | C114: 231016106402 | D114: 102023 | E114: 137199 | F114: 137199 | G114: 0 | H114: 064 | I114: 01/2024 | J114: 23 | K114: 1 | V114: 1006 | W114: 064 | X114: 23 | Y114: 137199 | AS114: 1006 | AT114: 137199
A115: 106 | B115: 1006 | C115: 231017106402 | D115: 102023 | E115: 116140 | F115: 116140 | G115: 0 | H115: 064 | I115: 01/2024 | J115: 23 | K115: 1 | V115: 1006 | W115: 064 | X115: 23 | Y115: 116140 | AS115: 1006 | AT115: 116140
A116: 107 | B116: 1006 | C116: 231019106403 | D116: 102023 | E116: 210028 | F116: 210028 | G116: 0 | H116: 064 | I116: 01/2024 | J116: 23 | K116: 1 | V116: 1006 | W116: 064 | X116: 23 | Y116: 210028 | AS116: 1006 | AT116: 210028
A117: 108 | B117: 1006 | C117: 231022106402 | D117: 102023 | E117: 149001 | F117: 149001 | G117: 0 | H117: 064 | I117: 01/2024 | J117: 23 | K117: 1 | V117: 1006 | W117: 064 | X117: 23 | Y117: 149001 | AS117: 1006 | AT117: 149001
A118: 109 | B118: 1006 | C118: 231023106402 | D118: 102023 | E118: 8580 | F118: 8580 | G118: 0 | H118: 064 | I118: 01/2024 | J118: 23 | K118: 1 | V118: 1006 | W118: 064 | X118: 23 | Y118: 8580 | AS118: 1006 | AT118: 8580
A119: 110 | B119: 1006 | C119: 231024106401 | D119: 102023 | E119: 246283 | F119: 246283 | G119: 0 | H119: 064 | I119: 01/2024 | J119: 23 | K119: 1 | V119: 1006 | W119: 064 | X119: 23 | Y119: 246283 | AS119: 1006 | AT119: 246283
A120: 111 | B120: 1006 | C120: 231025106402 | D120: 102023 | E120: 324048 | F120: 324048 | G120: 0 | H120: 064 | I120: 01/2024 | J120: 23 | K120: 1 | V120: 1006 | W120: 064 | X120: 23 | Y120: 324048 | AS120: 1006 | AT120: 324048
A121: 112 | B121: 1006 | C121: 231026106402 | D121: 102023 | E121: 389710 | F121: 389710 | G121: 0 | H121: 064 | I121: 01/2024 | J121: 23 | K121: 1 | V121: 1006 | W121: 064 | X121: 23 | Y121: 389710 | AS121: 1006 | AT121: 389710
A122: 113 | B122: 1006 | C122: 231029106402 | D122: 102023 | E122: 285646 | F122: 285646 | G122: 0 | H122: 064 | I122: 01/2024 | J122: 23 | K122: 1 | V122: 1006 | W122: 064 | X122: 23 | Y122: 285646 | AS122: 1006 | AT122: 285646
A123: 114 | B123: 1006 | C123: 231030106402 | D123: 102023 | E123: 450337 | F123: 450337 | G123: =IF(D123>0,E123-F123," ") -> 0 | H123: 064 | I123: 01/2024 | J123: 23 | K123: 1 | V123: 1006 | W123: 064 | X123: 23 | Y123: 450337 | AS123: 1006 | AT123: 450337
A124: 115 | B124: 1006 | C124: 231031106402 | D124: 102023 | E124: 737255 | F124: 737255 | G124: 0 | H124: 064 | I124: 01/2024 | J124: 23 | K124: 1 | V124: 1006 | W124: 064 | X124: 23 | Y124: 737255 | AS124: 1006 | AT124: 737255
A125: 116 | B125: 1006 | C125: 230831706411 | D125: 112023 | E125: 114777.3 | G125: =IF(D125>0,E125-F125," ") -> 114777.3 | J125: 23 | K125: 0 | V125: 1006 | AS125: 1006 | AT125: 114777.3
A126: 117 | B126: 1006 | C126: FA2311-1963-0006 | D126: 112023 | E126: 5458556 | G126: =IF(D126>0,E126-F126," ") -> 5458556 | J126: 23 | K126: 0 | V126: 1006 | AS126: 1006 | AT126: 5458556
A127: 118 | B127: 1006 | C127: AV2311-1963-0004 | D127: 112023 | E127: -24280 | G127: =IF(D127>0,E127-F127," ") -> -24280 | J127: 23 | K127: 0 | V127: 1006 | AS127: 1006 | AT127: -24280
A128: 119 | B128: 1006 | C128: FA2312-1963-0004 | D128: 122023 | E128: 3112538 | G128: 3112538 | J128: 23 | K128: 0 | V128: 1006
A129: 120 | B129: 1006 | C129: 230930706412 | D129: 12024 | F129: -67373.55 | H129: 064 | I129: 01/2024 | J129: 24 | K129: 1 | V129: 1006 | W129: 064 | X129: 24 | Y129: -67373.55
A130: 121 | B130: 1006 | C130: 231031706413 | D130: 12024 | F130: -116722.82 | H130: 064 | I130: 01/2024 | J130: 24 | K130: 1 | V130: 1006 | W130: 064 | X130: 24 | Y130: -116722.82
A131: 122 | B131: 1010 | C131: FA2311-1975-0011 | D131: 112023 | E131: 70011 | F131: 70011 | G131: 0 | H131: 052 | I131: 01/2024 | J131: 23 | K131: 1 | V131: 1010 | W131: 052 | X131: 23 | Y131: 70011 | AS131: 1010 | AT131: 70011
A132: 123 | B132: 1010 | C132: AV2311-1975-0001 | D132: 112023 | E132: -73043 | F132: -73043 | G132: 0 | H132: 052 | I132: 01/2024 | J132: 23 | K132: 1 | V132: 1010 | W132: 052 | X132: 23 | Y132: -73043 | AS132: 1010 | AT132: -73043
A133: 124 | B133: 1010 | C133: FA2312-1975-0011 | D133: 122023 | E133: 10302 | F133: 10302 | G133: 0 | H133: 052 | I133: 01/2024 | J133: 23 | K133: 1 | V133: 1010 | W133: 052 | X133: 23 | Y133: 10302 | AT133: 0
A134: 125 | B134: 1011 | C134: 221120106403 | D134: 112022 | E134: 4356 | G134: 4356 | J134: 23 | K134: 0 | V134: 1011 | AS134: 1011 | AT134: 4356
A135: 126 | B135: 1011 | C135: 221231706411 | D135: 22023 | E135: 23834.32 | F135: 23834.32 | G135: 0 | H135: TVA | I135: 01/2024 | J135: 23 | K135: 1 | R135: =SUMIF($B$10:$B$2363,Q135,$E$10:$E$2363) -> 0 | V135: 1011 | W135: TVA | X135: 23 | Y135: 23834.32 | AS135: 1011 | AT135: 23834.32
A136: 127 | B136: 1011 | C136: 192220770001 | D136: 22023 | E136: 40575.27 | G136: 40575.27 | J136: 23 | K136: 0 | R136: 0 | V136: 1011 | AS136: 1011 | AT136: 40575.27
A137: 128 | B137: 1011 | C137: 192220870001 | D137: 22023 | E137: 15470.07 | G137: 15470.07 | J137: 23 | K137: 0 | R137: 0 | V137: 1011 | AS137: 1011 | AT137: 15470.07
A138: 129 | B138: 1011 | C138: 192220970002 | D138: 22023 | E138: 8716.22 | G138: 8716.22 | J138: 23 | K138: 0 | R138: 0 | V138: =+B138 -> 1011 | W138: =IF(F138=0," ",H138) ->  | X138: =IF(F138=0," ",J138) ->  | AS138: 1011 | AT138: 8716.22
A139: 130 | B139: 1011 | C139: 192230210001 | D139: 22023 | E139: 3124.4 | G139: 3124.4 | J139: =IF(D139=12024,24,IF(D139=22024,24,IF(D139=32024,24,IF(D139=42024,24,IF(D139=52024,24,IF(D139=62024,24,IF(D139=72024,24,IF(D139=82024,24,IF(D139=92024,24,IF(D139=102024,24,IF(D139=112024,24,IF(D139=122024,24,IF(D139=""," ",23))))))))))))) -> 23 | K139: =IF(G139=0,1,0) -> 0 | R139: 0 | V139: 1011 | Y139: =IF(F139=0," ",F139) ->  | AS139: 1011 | AT139: 3124.4
A140: 131 | B140: 1011 | C140: 192230310001 | D140: 32023 | E140: 14274.1 | G140: 14274.1 | J140: 23 | K140: 0 | R140: 0 | V140: 1011 | AS140: 1011 | AT140: 14274.1
A141: 132 | B141: 1011 | C141: 230131706416 | D141: 42023 | E141: 42227.29 | F141: 42227.29 | G141: 0 | H141: TVA | I141: 01/2024 | J141: 23 | K141: 1 | R141: 0 | V141: 1011 | W141: TVA | X141: 23 | Y141: 42227.29 | AS141: 1011 | AT141: 42227.29
A142: 133 | B142: 1011 | C142: 192230410002 | D142: 42023 | E142: 8937.8 | G142: 8937.8 | J142: 23 | K142: 0 | R142: 0 | V142: 1011 | AS142: 1011 | AT142: 8937.8
A143: 134 | B143: 1011 | C143: 192221070011 | D143: 52023 | E143: 7106.67 | G143: 7106.67 | J143: 23 | K143: 0 | R143: 0 | V143: 1011 | AS143: 1011 | AT143: 7106.67
A144: 135 | B144: 1011 | C144: 230228706413 | D144: 52023 | E144: 39796.08 | F144: 39796.08 | G144: 0 | H144: TVA | I144: 01/2024 | J144: 23 | K144: 1 | R144: 0 | V144: 1011 | W144: TVA | X144: 23 | Y144: 39796.08 | AS144: 1011 | AT144: 39796.08
A145: 136 | B145: 1011 | C145: 230502106403 | D145: 52023 | E145: 65142 | G145: 65142 | J145: 23 | K145: 0 | R145: 0 | V145: 1011 | AS145: 1011 | AT145: 65142
A146: 137 | B146: 1011 | C146: 230509106404 | D146: 52023 | E146: 21617 | G146: 21617 | J146: 23 | K146: 0 | R146: 0 | V146: 1011 | AS146: 1011 | AT146: 21617
A147: 138 | B147: 1011 | C147: 230511106403 | D147: 52023 | E147: 35795 | G147: 35795 | J147: 23 | K147: 0 | R147: 0 | V147: 1011 | AS147: 1011 | AT147: 35795
A148: 139 | B148: 1011 | C148: 230515106403 | D148: 52023 | E148: 58536 | G148: 58536 | J148: 23 | K148: 0 | R148: 0 | V148: 1011 | AS148: 1011 | AT148: 58536
A149: 140 | B149: 1011 | C149: 230517106403 | D149: 52023 | E149: 31455 | G149: 31455 | J149: 23 | K149: 0 | R149: 0 | V149: 1011 | AS149: 1011 | AT149: 31455
A150: 141 | B150: 1011 | C150: 230521106403 | D150: 52023 | E150: 82161 | G150: 82161 | J150: 23 | K150: 0 | R150: 0 | V150: 1011 | AS150: 1011 | AT150: 82161
A151: 142 | B151: 1011 | C151: 230522106403 | D151: 52023 | E151: 81753 | G151: 81753 | J151: 23 | K151: 0 | R151: 0 | V151: 1011 | AS151: 1011 | AT151: 81753
A152: 143 | B152: 1011 | C152: 230528106403 | D152: 52023 | E152: 25960 | G152: 25960 | J152: 23 | K152: 0 | R152: 0 | V152: 1011 | AS152: 1011 | AT152: 25960
A153: 144 | B153: 1011 | C153: 230529106404 | D153: 52023 | E153: 52748 | G153: 52748 | J153: 23 | K153: 0 | R153: 0 | V153: 1011 | AS153: 1011 | AT153: 52748
A154: 145 | B154: 1011 | C154: 230331706412 | D154: 62023 | E154: 40547.31 | F154: 40547.31 | G154: 0 | H154: TVA | I154: 01/2024 | J154: 23 | K154: 1 | R154: 0 | V154: 1011 | W154: TVA | X154: 23 | Y154: 40547.31 | AS154: 1011 | AT154: 40547.31
A155: 146 | B155: 1011 | C155: 230430706413 | D155: 62023 | E155: 32414.62 | F155: 32414.62 | G155: 0 | H155: TVA | I155: 01/2024 | J155: 23 | K155: 1 | R155: 0 | V155: 1011 | W155: TVA | X155: 23 | Y155: 32414.62 | AS155: 1011 | AT155: 32414.62
A156: 147 | B156: 1011 | C156: 192230610002 | D156: 62023 | E156: 9978.7 | G156: 9978.7 | J156: 23 | K156: 0 | R156: 0 | V156: 1011 | AS156: 1011 | AT156: 9978.7
A157: 148 | B157: 1011 | C157: 192230670001 | D157: 62023 | E157: -8937.8 | G157: -8937.8 | J157: 23 | K157: 0 | R157: 0 | V157: 1011 | AS157: 1011 | AT157: -8937.8
A158: 149 | B158: 1011 | C158: 230601106403 | D158: 62023 | E158: 16742 | G158: 16742 | J158: 23 | K158: 0 | R158: 0 | V158: 1011 | AS158: 1011 | AT158: 16742
A159: 150 | B159: 1011 | C159: 230605106402 | D159: 62023 | E159: 33318 | G159: 33318 | J159: 23 | K159: 0 | V159: 1011 | AS159: 1011 | AT159: 33318
A160: 151 | B160: 1011 | C160: 230606106402 | D160: 62023 | E160: 13369 | G160: 13369 | J160: 23 | K160: 0 | V160: 1011 | AS160: 1011 | AT160: 13369
A161: 152 | B161: 1011 | C161: 230607106402 | D161: 62023 | E161: 4405 | G161: 4405 | J161: 23 | K161: 0 | R161: =SUM(R135:R160) -> 0 | V161: 1011 | AS161: 1011 | AT161: 4405
A162: 153 | B162: 1011 | C162: 230610106401 | D162: 62023 | E162: 4976 | G162: 4976 | J162: 23 | K162: 0 | R162: 61327344.47 | V162: 1011 | AS162: 1011 | AT162: 4976
A163: 154 | B163: 1011 | C163: 230611106403 | D163: 62023 | E163: 25940 | G163: 25940 | J163: 23 | K163: 0 | V163: 1011 | AS163: 1011 | AT163: 25940
A164: 155 | B164: 1011 | C164: 230613106403 | D164: 62023 | E164: 27600 | G164: 27600 | J164: 23 | K164: 0 | V164: 1011 | AS164: 1011 | AT164: 27600
A165: 156 | B165: 1011 | C165: 230614106402 | D165: 62023 | E165: 79198 | G165: 79198 | J165: 23 | K165: 0 | V165: 1011 | AS165: 1011 | AT165: 79198
A166: 157 | B166: 1011 | C166: 230618106402 | D166: 62023 | E166: 9952 | G166: 9952 | J166: 23 | K166: 0 | R166: =SUMIF($B$10:$B$2363,Q166,$E$10:$E$2363) -> 0 | V166: 1011 | AS166: 1011 | AT166: 9952
A167: 158 | B167: 1011 | C167: 230620106403 | D167: 62023 | E167: 106714 | G167: 106714 | J167: 23 | K167: 0 | R167: =SUMIF($B$10:$B$2363,Q167,$E$10:$E$2363) -> 0 | V167: 1011 | AS167: 1011 | AT167: 106714
A168: 159 | B168: 1011 | C168: 230621106403 | D168: 62023 | E168: 42911 | G168: 42911 | J168: 23 | K168: 0 | R168: =SUMIF($B$10:$B$2363,Q168,$E$10:$E$2363) -> 0 | V168: 1011 | AS168: 1011 | AT168: 42911
A169: 160 | B169: 1011 | C169: 230622106403 | D169: 62023 | E169: 28705 | G169: 28705 | J169: 23 | K169: 0 | R169: =SUMIF($B$10:$B$2363,Q169,$E$10:$E$2363) -> 0 | V169: 1011 | AS169: 1011 | AT169: 28705
A170: 161 | B170: 1011 | C170: 230912706401 | D170: 92023 | E170: -4036 | G170: -4036 | J170: 23 | K170: 0 | V170: 1011 | AS170: 1011 | AT170: -4036
A171: 162 | B171: 1011 | C171: 221130706413 | D171: 102023 | E171: 14407.75 | F171: 11454.29 | G171: 2953.46 | H171: TVA | I171: 01/2024 | J171: 23 | K171: 0 | R171: =SUMIF($B$10:$B$2363,Q171,$E$10:$E$2363) -> 0 | V171: 1011 | W171: TVA | X171: 23 | Y171: 11454.29 | AS171: 1011 | AT171: 14407.75
A172: 163 | B172: 1011 | C172: 230731706414 | D172: 102023 | E172: 69291.14 | F172: 69291.14 | G172: 0 | H172: TVA | I172: 01/2024 | J172: 23 | K172: 1 | V172: 1011 | W172: TVA | X172: 23 | Y172: 69291.14 | AS172: 1011 | AT172: 69291.14
A173: 164 | B173: 1011 | C173: 230613706401 | D173: 102023 | E173: 2016 | G173: 2016 | J173: 23 | K173: 0 | V173: 1011 | AS173: 1011 | AT173: 2016
A174: 165 | B174: 1011 | C174: FA2311-1963-0017 | D174: 112023 | E174: 458300 | G174: 458300 | J174: 23 | K174: 0 | V174: 1011 | AS174: 1011 | AT174: 458300
A175: 166 | B175: 1011 | C175: 230831706411 | D175: 122023 | E175: 46197.3 | G175: 46197.3 | J175: 23 | K175: 0 | V175: 1011 | AT175: 0
A176: 167 | B176: 1011 | C176: 230930106412 | D176: 122023 | E176: 40242.44 | G176: 40242.44 | J176: 23 | K176: 0 | V176: 1011 | AT176: 0
A177: 168 | B177: 1011 | C177: 231030106413 | D177: 122023 | E177: 105553.22 | G177: 105553.22 | J177: 23 | K177: 0 | V177: 1011
A178: 169 | B178: 1011 | C178: FA2312-1963-0001 | D178: 122023 | E178: 858410 | G178: 858410 | J178: 23 | K178: 0 | V178: 1011
A179: 170 | B179: 1011 | C179: AV2312-1963-0003 | D179: 122023 | E179: -11228 | G179: -11228 | J179: 23 | K179: 0 | V179: 1011
A180: 171 | B180: 1013 | C180: 230525706401 | D180: 52023 | E180: -138912 | G180: -138912 | J180: 23 | K180: 0 | V180: 1013 | AS180: 1013 | AT180: -138912
A181: 172 | B181: 1013 | C181: 230602106402 | D181: 62023 | E181: 46090 | G181: 46090 | J181: 23 | K181: 0 | V181: 1013 | AS181: 1013 | AT181: 46090
A182: 173 | B182: 1013 | C182: 230604106403 | D182: 62023 | E182: 5828 | G182: 5828 | J182: 23 | K182: 0 | V182: 1013 | AS182: 1013 | AT182: 5828
A183: 174 | B183: 1013 | C183: 230605106403 | D183: 62023 | E183: 93322 | G183: 93322 | J183: 23 | K183: 0 | V183: 1013 | AS183: 1013 | AT183: 93322
A184: 175 | B184: 1013 | C184: 230608106402 | D184: 62023 | E184: 123467 | G184: 123467 | J184: 23 | K184: 0 | R184: =SUMIF($B$10:$B$2363,Q184,$E$10:$E$2363) -> 0 | V184: 1013 | AS184: 1013 | AT184: 123467
A185: 176 | B185: 1013 | C185: 230611106404 | D185: 62023 | E185: 52533 | G185: 52533 | J185: 23 | K185: 0 | R185: 0 | V185: 1013 | AS185: 1013 | AT185: 52533
A186: 177 | B186: 1013 | C186: 230615106404 | D186: 62023 | E186: 6458 | G186: 6458 | J186: 23 | K186: 0 | R186: 0 | V186: 1013 | AS186: 1013 | AT186: 6458
A187: 178 | B187: 1013 | C187: 230619106403 | D187: 62023 | E187: 46840 | G187: =IF(D187>0,E187-F187," ") -> 46840 | J187: 23 | K187: 0 | R187: 0 | V187: 1013 | AS187: 1013 | AT187: 46840
A188: 179 | B188: 1013 | C188: 230625106403 | D188: 62023 | E188: 5464 | G188: 5464 | J188: 23 | K188: 0 | R188: 0 | V188: 1013 | AS188: 1013 | AT188: 5464
A189: 180 | B189: 1013 | C189: FA2311-1963-0024 | D189: 112023 | E189: 549199 | G189: 549199 | J189: 23 | K189: 0 | R189: 0 | V189: 1013 | AS189: 1013 | AT189: 549199
A190: 181 | B190: 1013 | C190: FA2312-1963-0002 | D190: 122023 | E190: 914304 | G190: 914304 | J190: 23 | K190: 0 | R190: 0 | V190: 1013 | AT190: 0
A191: 182 | B191: 1018 | C191: 194100610033 | D191: 62010 | E191: 565380 | G191: 565380 | J191: 23 | K191: 0 | R191: 0 | V191: 1018 | AS191: 1018 | AT191: 565380
A192: 183 | B192: 1018 | C192: PR.P.CNT.19 | D192: 132019 | E192: =-E191*0.5 -> -282690 | G192: -282690 | J192: 23 | K192: 0 | R192: 0 | V192: 1018 | AS192: 1018 | AT192: -282690
A193: 184 | B193: 1018 | C193: PR.P.CNT.20 | D193: 122020 | E193: -113076 | G193: -113076 | J193: 23 | K193: 0 | R193: 0 | V193: 1018 | AS193: 1018 | AT193: -113076
A194: 185 | B194: 1018 | C194: PR.P.CNT.21 | D194: 122021 | E194: -169614 | G194: -169614 | J194: 23 | K194: 0 | R194: 0 | V194: 1018 | AS194: 1018 | AT194: -169614
A195: 186 | B195: 1020 | C195: 194090220015 | D195: 22009 | E195: 603700 | G195: 603700 | J195: 23 | K195: 0 | R195: 0 | V195: 1020 | AS195: 1020 | AT195: 603700
A196: 187 | B196: 1020 | C196: 194090220016 | D196: 22009 | E196: 252184 | G196: 252184 | J196: 23 | K196: 0 | R196: 0 | V196: 1020 | AS196: 1020 | AT196: 252184
A197: 188 | B197: 1020 | C197: 194090220017 | D197: 22009 | E197: 603560 | G197: 603560 | J197: 23 | K197: 0 | R197: 0 | V197: 1020 | AS197: 1020 | AT197: 603560
A198: 189 | B198: 1020 | C198: 194090220018 | D198: 22009 | E198: 603560 | G198: 603560 | J198: 23 | K198: 0 | R198: 0 | V198: 1020 | AS198: 1020 | AT198: 603560
A199: 190 | B199: 1020 | C199: 194090220019 | D199: 22009 | E199: 201240 | G199: 201240 | J199: 23 | K199: 0 | R199: 0 | V199: 1020 | AS199: 1020 | AT199: 201240
A200: 191 | B200: 1020 | C200: 194090220020 | D200: 22009 | E200: 498984 | G200: 498984 | J200: 23 | K200: 0 | R200: 0 | V200: =+D1000 -> 0 | AS200: 1020 | AT200: 498984
A201: 192 | B201: 1020 | C201: 194090320036 | D201: 32009 | E201: -1257613 | G201: -1257613 | J201: 23 | K201: 0 | R201: 0 | V201: 0 | AS201: 1020 | AT201: -1257613
A202: 193 | B202: 1020 | C202: 194090320037 | D202: 32009 | E202: -71475 | G202: -71475 | J202: 23 | K202: 0 | R202: 0 | V202: 0 | W202: =IF(F202=0," ",H202) ->  | X202: =IF(F202=0," ",J202) ->  | AS202: 1020 | AT202: -71475
A203: 194 | B203: 1020 | C203: 194090320038 | D203: 32009 | E203: -87366 | G203: -87366 | J203: =IF(D203=12024,24,IF(D203=22024,24,IF(D203=32024,24,IF(D203=42024,24,IF(D203=52024,24,IF(D203=62024,24,IF(D203=72024,24,IF(D203=82024,24,IF(D203=92024,24,IF(D203=102024,24,IF(D203=112024,24,IF(D203=122024,24,IF(D203=""," ",23))))))))))))) -> 23 | K203: =IF(G203=0,1,0) -> 0 | R203: 0 | V203: 0 | Y203: =IF(F203=0," ",F203) ->  | AS203: 1020 | AT203: -87366
A204: 195 | B204: 1020 | C204: 194090320039 | D204: 32009 | E204: 452670 | G204: 452670 | J204: 23 | K204: 0 | R204: 0 | V204: 0 | AS204: 1020 | AT204: 452670
A205: 196 | B205: 1020 | C205: 194090320040 | D205: 32009 | E205: 226395 | G205: 226395 | J205: 23 | K205: 0 | R205: 0 | V205: 0 | AS205: 1020 | AT205: 226395
A206: 197 | B206: 1020 | C206: 194090320042 | D206: 32009 | E206: -307831.5 | G206: -307831.5 | J206: 23 | K206: 0 | R206: 0 | V206: 0 | AS206: 1020 | AT206: -307831.5
A207: 198 | B207: 1020 | C207: 194090320051 | D207: 32009 | E207: 150925 | G207: 150925 | J207: 23 | K207: 0 | R207: 0 | V207: 0 | AS207: 1020 | AT207: 150925
... 721 more rows

Sheet Feuil6
V1: klm | AS1: mlk | BK1: mkl
E2: رقم العميل يتغير حسب الطلب | F2: رمز الفواتيرالغيرمسددة
E3: 1005 | F3: 0
A9: ترتيب | B9: رقم العميل | C9: رقم الفاتورة | D9: شهر الخاص بالفاتورة | E9: مبلغ الفاتورة | F9: مبلغ تسديد الفاتورة | G9: الرصيد | H9: الوكالة | I9: شهر تسديد الفاتورة | J9: السنة | K9: رمز التسديد
